[Event "HUN-ch U8-U18 2019"]
[Site "Balatonlelle"]
[Date "2019.06.23"]
[Round "3.12"]
[White "Varga, Boldizsar"]
[Black "Tapodi, Norman Lajos"]
[Result "0-1"]
[ECO "E46"]
[WhiteElo "1804"]
[BlackElo "2043"]
[Annotator "NA"]
[PlyCount "42"]
[EventDate "2019.06.21"]
[EventType "swiss"]
[EventCountry "HUN"]
[SourceTitle "playchess.com"]
[Source "ChessBase"]
[SourceQuality "1"]
[TimeControl "40/5400+30:1800+30"]

1. d4 {[%emt 0:00:01]} Nf6 {[%emt 0:00:08]} 2. c4 {[%emt 0:00:10]} e6 {[%emt 0:00:10]} 3. Nc3 {[%emt 0:00:08]} Bb4 {[%emt 0:00:16]} 4. e3 {[%emt 0:00:14]} O-O {[%emt 0:00:23]} 5. Nge2 {[%emt 0:00:25]} c6 {[%emt 0:00:21]} 6. a3 {[%emt 0:00:49]} Ba5 {[%emt 0:00:21]} 7. Bd2 {[%emt 0:07:22]} d5 {[%emt 0:00:33]} 8. cxd5 {[%emt 0:05:28]} exd5 {[%emt 0:00:45]} 9. Nf4 {[%emt 0:04:14]} Re8 {[%emt 0:06:11]} 10. Be2 {[%emt 0:09:44]} Nbd7 {[%emt 0:06:20]} 11. b4 {[%emt 0:06:19]} Bc7 {[%emt 0:01:16]} 12. Nd3 {[%emt 0:01:45]} b6 {[%emt 0:14:25]} 13. Qb3 {[%emt 0:05:55]} Bb7 {[%emt 0:03:16]} 14. Na4 {[%emt 0:01:54]} Ne4 {[%emt 0:04:22]} 15. Rc1 {[%emt 0:13:21]} Qf6 {[%emt 0:17:20]} 16. Bg4 {[%emt 0:05:02]} Rad8 {[%emt 0:08:41]} 17. Bxd7 {[%emt 0:10:36]} Rxd7 {[%emt 0:00:08]} 18. b5 {[%emt 0:00:14]} Rdd8 {[%emt 0:09:43]} 19. bxc6 {[%emt 0:10:24]} Ba6 {[%emt 0:00:24]} 20. f3 {[%emt 0:03:10]} Qh4+ {[%emt 0:05:19]} 21. g3 {[%emt 0:05:57]} Nxg3 0-1

[Event "HUN-ch U8-U18 2019"]
[Site "Balatonlelle"]
[Date "2019.06.23"]
[Round "3.12"]
[White "Kresz, Tamas"]
[Black "Pater, Peter"]
[Result "0-1"]
[ECO "C00"]
[WhiteElo "1766"]
[BlackElo "1901"]
[Annotator "NA"]
[PlyCount "48"]
[EventDate "2019.06.21"]
[EventType "swiss"]
[EventCountry "HUN"]
[SourceTitle "playchess.com"]
[Source "ChessBase"]
[SourceQuality "1"]
[TimeControl "40/5400+30:1800+30"]

1. e4 {[%emt 0:00:02]} e6 {[%emt 0:00:07]} 2. d3 {[%emt 0:00:06]} d5 {[%emt 0:00:40]} 3. Nd2 {[%emt 0:00:08]} c5 {[%emt 0:00:44]} 4. Ngf3 {[%emt 0:00:10]} Nc6 {[%emt 0:00:38]} 5. g3 {[%emt 0:00:18]} Bd6 {[%emt 0:00:26]} 6. Bg2 {[%emt 0:00:24]} Nge7 {[%emt 0:00:12]} 7. O-O {[%emt 0:00:33]} O-O {[%emt 0:01:13]} 8. Re1 {[%emt 0:01:14]} b6 {[%emt 0:03:23]} 9. h4 {[%emt 0:05:20]} Bc7 {[%emt 0:05:16]} 10. h5 {[%emt 0:11:17]} h6 {[%emt 0:27:02]} 11. e5 {[%emt 0:05:16]} f5 {[%emt 0:02:39]} 12. exf6 {[%emt 0:18:23]} Rxf6 {[%emt 0:01:23]} 13. b3 {[%emt 0:06:00]} e5 {[%emt 0:03:03]} 14. Bb2 {[%emt 0:05:30]} Bg4 {[%emt 0:04:38]} 15. Qc1 {[%emt 0:08:21]} d4 {[%emt 0:26:22]} 16. c3 {[%emt 0:17:09]} Bxh5 {[%emt 0:09:46]} 17. b4 {[%emt 0:00:54]} Rc8 {[%emt 0:04:47]} 18. bxc5 {[%emt 0:03:16]} bxc5 {[%emt 0:00:12]} 19. Ba3 {[%emt 0:02:25]} Bd6 {[%emt 0:01:47]} 20. Ne4 {[%emt 0:10:13]} Rxf3 {[%emt 0:01:07]} 21. Bxf3 {[%emt 0:00:06]} Bxf3 {[%emt 0:00:05]} 22. Nxc5 {[%emt 0:02:22]} Qe8 {[%emt 0:01:02]} 23. g4 {[%emt 0:01:26]} Qg6 {[%emt 0:00:25]} 24. g5 {[%emt 0:00:33]} Qh5 {[%emt 0:00:17]} 0-1

[Event "HUN-ch U8-U18 2019"]
[Site "Balatonlelle"]
[Date "2019.06.23"]
[Round "3.13"]
[White "Kovacs, Patrik Zsolt"]
[Black "Gyurika, Tamas"]
[Result "0-1"]
[ECO "D37"]
[WhiteElo "1903"]
[BlackElo "1643"]
[Annotator "NA"]
[PlyCount "114"]
[EventDate "2019.06.21"]
[EventType "swiss"]
[EventCountry "HUN"]
[SourceTitle "playchess.com"]
[Source "ChessBase"]
[SourceQuality "1"]
[TimeControl "40/5400+30:1800+30"]

1. d4 {[%emt 0:00:01]} d5 {[%emt 0:00:23]} 2. c4 {[%emt 0:00:07]} e6 {[%emt 0:01:26]} 3. Nf3 {[%emt 0:00:08]} Nf6 {[%emt 0:00:43]} 4. Nc3 {[%emt 0:00:47]} Be7 {[%emt 0:04:18]} 5. Bf4 {[%emt 0:00:45]} Bd7 {[%emt 0:02:31]} 6. e3 {[%emt 0:00:10]} O-O {[%emt 0:02:17]} 7. Bd3 {[%emt 0:00:57]} c5 {[%emt 0:01:06]} 8. Qb3 {[%emt 0:01:25]} Bc6 {[%emt 0:00:53]} 9. Be2 {[%emt 0:02:09]} dxc4 {[%emt 0:01:46]} 10. Qxc4 {[%emt 0:00:25]} Nbd7 {[%emt 0:03:04]} 11. O-O {[%emt 0:00:22]} Rc8 {[%emt 0:01:20]} 12. Rfd1 {[%emt 0:01:48]} Qb6 {[%emt 0:02:50]} 13. Rab1 {[%emt 0:04:09]} Rfd8 {[%emt 0:01:25]} 14. Qd3 {[%emt 0:00:50]} cxd4 {[%emt 0:01:53]} 15. exd4 {[%emt 0:02:10]} Nd5 {[%emt 0:00:51]} 16. Bg5 {[%emt 0:03:06]} Bxg5 {[%emt 0:04:29]} 17. Nxg5 {[%emt 0:00:39]} N7f6 {[%emt 0:00:06]} 18. Nxd5 {[%emt 0:01:41]} Bxd5 {[%emt 0:00:28]} 19. Qa3 {[%emt 0:15:48]} h6 {[%emt 0:02:53]} 20. Nf3 {[%emt 0:00:06]} Rc7 {[%emt 0:03:13]} 21. Rbc1 {[%emt 0:01:34]} Rdc8 {[%emt 0:01:48]} 22. b3 {[%emt 0:01:01]} Ne4 {[%emt 0:00:54]} 23. Rxc7 {[%emt 0:03:56]} Rxc7 {[%emt 0:00:29]} 24. Rc1 {[%emt 0:00:15]} Nc3 {[%emt 0:01:41]} 25. Bc4 {[%emt 0:05:39]} Bxf3 {[%emt 0:04:10]} 26. Rxc3 {[%emt 0:02:13]} Qxd4 {[%emt 0:00:29]} 27. Qc1 {[%emt 0:02:18]} Bd5 {[%emt 0:00:56]} 28. Rc2 {[%emt 0:02:41]} Qe4 {[%emt 0:01:27]} 29. f3 {[%emt 0:00:34]} Qd4+ {[%emt 0:00:06]} 30. Kf1 {[%emt 0:00:32]} Rc5 {[%emt 0:01:40]} 31. Be2 {[%emt 0:04:32]} Rxc2 {[%emt 0:02:01]} 32. Qxc2 {[%emt 0:00:22]} Bc6 {[%emt 0:00:07]} 33. Bc4 {[%emt 0:01:20]} g5 {[%emt 0:01:26]} 34. Be2 {[%emt 0:00:57]} Kg7 {[%emt 0:01:04]} 35. Qc1 {[%emt 0:05:17]} e5 {[%emt 0:00:45]} 36. Qd1 {[%emt 0:13:58]} Qb2 {[%emt 0:01:53]} 37. a4 {[%emt 0:00:29]} e4 {[%emt 0:00:36]} 38. Kf2 {[%emt 0:04:22]} exf3 {[%emt 0:00:58]} 39. gxf3 {[%emt 0:00:11]} Qe5 {[%emt 0:00:25]} 40. Kg2 {[%emt 0:00:00]} g4 {[%emt 0:00:00]} 41. Qd3 {[%emt 0:01:44]} Qd5 {[%emt 0:02:33]} 42. Qc3+ {[%emt 0:01:24]} Kg8 {[%emt 0:00:29]} 43. Bc4 {[%emt 0:02:21]} gxf3+ {[%emt 0:01:08]} 44. Kf2 {[%emt 0:00:17]} Qg5 {[%emt 0:00:24]} 45. Bf1 {[%emt 0:00:15]} Qh4+ {[%emt 0:00:55]} 46. Ke3 {[%emt 0:00:26]} Qxh2 {[%emt 0:00:40]} 47. Qd3 {[%emt 0:00:58]} Qg1+ {[%emt 0:02:07]} 48. Kd2 {[%emt 0:00:39]} Qg5+ {[%emt 0:00:36]} 49. Ke1 {[%emt 0:00:21]} Qe7+ {[%emt 0:00:35]} 50. Kf2 {[%emt 0:00:25]} Qc5+ {[%emt 0:01:34]} 51. Kg3 {[%emt 0:00:26]} Qg1+ {[%emt 0:00:25]} 52. Kh3 {[%emt 0:00:14]} h5 {[%emt 0:01:48]} 53. b4 {[%emt 0:00:57]} Qg4+ {[%emt 0:01:46]} 54. Kh2 {[%emt 0:00:09]} Qh4+ {[%emt 0:00:53]} 55. Bh3 {[%emt 0:00:44]} Qf4+ {[%emt 0:00:09]} 56. Kg1 {[%emt 0:00:31]} Qg3+ {[%emt 0:00:11]} 57. Kf1 {[%emt 0:00:20]} Qxh3+ {[%emt 0:00:20]} 0-1

[Event "HUN-ch U8-U18 2019"]
[Site "Balatonlelle"]
[Date "2019.06.23"]
[Round "3.14"]
[White "Kresz, Adam"]
[Black "Kokeny, Norbert Adrian"]
[Result "0-1"]
[ECO "B40"]
[WhiteElo "1949"]
[BlackElo "2268"]
[Annotator "NA"]
[PlyCount "72"]
[EventDate "2019.06.21"]
[EventType "swiss"]
[EventCountry "HUN"]
[SourceTitle "playchess.com"]
[Source "ChessBase"]
[SourceQuality "1"]
[TimeControl "40/5400+30:1800+30"]

1. e4 {[%emt 0:00:03]} c5 {[%emt 0:00:06]} 2. Nf3 {[%emt 0:00:07]} e6 {[%emt 0:00:10]} 3. d3 {[%emt 0:00:05]} Nc6 {[%emt 0:00:12]} 4. Nbd2 {[%emt 0:00:08]} d5 {[%emt 0:00:06]} 5. g3 {[%emt 0:00:12]} Nf6 {[%emt 0:00:04]} 6. Bg2 {[%emt 0:00:07]} Be7 {[%emt 0:00:09]} 7. O-O {[%emt 0:00:10]} b6 {[%emt 0:00:02]} 8. e5 {[%emt 0:00:15]} Nd7 {[%emt 0:00:04]} 9. Re1 {[%emt 0:00:09]} Qc7 {[%emt 0:00:05]} 10. Qe2 {[%emt 0:00:07]} Bb7 {[%emt 0:00:03]} 11. Nf1 {[%emt 0:00:19]} h6 {[%emt 0:00:09]} 12. h4 {[%emt 0:00:11]} O-O-O {[%emt 0:00:20]} 13. N1h2 {[%emt 0:00:19]} Rdg8 {[%emt 0:00:38]} 14. c3 {[%emt 0:00:32]} Kb8 {[%emt 0:06:00]} 15. a3 {[%emt 0:05:30]} g5 {[%emt 0:02:46]} 16. hxg5 {[%emt 0:00:29]} hxg5 {[%emt 0:00:06]} 17. Ng4 {[%emt 0:00:09]} Rh5 {[%emt 0:00:27]} 18. b4 {[%emt 0:03:03]} Rgh8 {[%emt 0:01:20]} 19. b5 {[%emt 0:12:12]} Na5 {[%emt 0:01:20]} 20. d4 {[%emt 0:05:24]} cxd4 {[%emt 0:03:46]} 21. cxd4 {[%emt 0:05:52]} Nc4 {[%emt 0:00:31]} 22. Qc2 {[%emt 0:05:52]} Qc8 {[%emt 0:03:30]} 23. a4 {[%emt 0:11:35]} a5 {[%emt 0:14:15]} 24. bxa6 {[%emt 0:17:10]} Bxa6 {[%emt 0:00:07]} 25. Rb1 {[%emt 0:04:57]} Ka7 {[%emt 0:00:04]} 26. Rb3 {[%emt 0:02:07]} Qg8 {[%emt 0:03:25]} 27. Ba3 {[%emt 0:21:51]} Bxa3 {[%emt 0:01:47]} 28. Rxa3 {[%emt 0:00:07]} R8h7 {[%emt 0:02:59]} 29. Rc3 {[%emt 0:02:38]} Qh8 {[%emt 0:00:22]} 30. Bf1 {[%emt 0:02:19]} f5 {[%emt 0:03:57]} 31. exf6 {[%emt 0:00:12]} Nxf6 {[%emt 0:00:33]} 32. Nxf6 {[%emt 0:00:44]} Qxf6 {[%emt 0:00:06]} 33. Rxc4 {[%emt 0:00:27]} Bxc4 {[%emt 0:00:30]} 34. Kg2 {[%emt 0:00:24]} g4 {[%emt 0:05:00]} 35. Nh4 {[%emt 0:00:08]} Rxh4 {[%emt 0:00:40]} 36. gxh4 {[%emt 0:00:07]} Qxh4 {[%emt 0:00:10]} 0-1

[Event "HUN-ch U8-U18 2019"]
[Site "Balatonlelle"]
[Date "2019.06.23"]
[Round "3.14"]
[White "Farkas, Otto Jr."]
[Black "Vegh, Benedek"]
[Result "1-0"]
[ECO "C42"]
[WhiteElo "1859"]
[BlackElo "1626"]
[Annotator "NA"]
[PlyCount "77"]
[EventDate "2019.06.21"]
[EventType "swiss"]
[EventCountry "HUN"]
[SourceTitle "playchess.com"]
[Source "ChessBase"]
[SourceQuality "1"]
[TimeControl "40/5400+30:1800+30"]

1. e4 {[%emt 0:00:02]} e5 {[%emt 0:00:10]} 2. Nf3 {[%emt 0:00:06]} Nf6 {[%emt 0:00:11]} 3. Nxe5 {[%emt 0:00:23]} d6 {[%emt 0:00:12]} 4. Nf3 {[%emt 0:00:05]} Nxe4 {[%emt 0:00:16]} 5. Be2 {[%emt 0:01:27]} Be7 {[%emt 0:00:45]} 6. O-O {[%emt 0:00:09]} O-O {[%emt 0:00:16]} 7. d4 {[%emt 0:00:29]} d5 {[%emt 0:01:28]} 8. Nc3 {[%emt 0:01:39]} Nxc3 {[%emt 0:01:05]} 9. bxc3 {[%emt 0:00:09]} Be6 {[%emt 0:03:32]} 10. Rb1 {[%emt 0:00:25]} Nd7 {[%emt 0:04:29]} 11. Re1 {[%emt 0:01:10]} Rb8 {[%emt 0:00:59]} 12. Bf1 {[%emt 0:01:31]} Nf6 {[%emt 0:03:11]} 13. Bd3 {[%emt 0:06:39]} Re8 {[%emt 0:03:21]} 14. h3 {[%emt 0:00:44]} Qd7 {[%emt 0:02:22]} 15. Ne5 {[%emt 0:05:08]} Qc8 {[%emt 0:06:33]} 16. f4 {[%emt 0:05:23]} Bf5 {[%emt 0:10:48]} 17. g4 {[%emt 0:06:40]} Bxd3 {[%emt 0:01:47]} 18. cxd3 {[%emt 0:00:20]} Nd7 {[%emt 0:02:24]} 19. Qa4 {[%emt 0:01:06]} Nb6 {[%emt 0:01:40]} 20. Qb5 {[%emt 0:05:12]} c6 {[%emt 0:04:41]} 21. Qb3 {[%emt 0:03:44]} Bh4 {[%emt 0:05:21]} 22. Rf1 {[%emt 0:00:31]} Be7 {[%emt 0:03:18]} 23. Ba3 {[%emt 0:01:37]} f6 {[%emt 0:04:33]} 24. Bxe7 {[%emt 0:02:01]} Rxe7 {[%emt 0:01:45]} 25. Qa3 {[%emt 0:00:38]} Qc7 {[%emt 0:04:11]} 26. Qxa7 {[%emt 0:28:39]} Nc8 {[%emt 0:01:19]} 27. Qc5 {[%emt 0:04:30]} fxe5 {[%emt 0:01:53]} 28. dxe5 {[%emt 0:01:33]} b5 {[%emt 0:04:05]} 29. d4 {[%emt 0:01:34]} Nb6 {[%emt 0:01:25]} 30. f5 {[%emt 0:01:13]} Nc4 {[%emt 0:02:08]} 31. Rf2 {[%emt 0:01:29]} Ree8 {[%emt 0:03:33]} 32. f6 {[%emt 0:02:07]} gxf6 {[%emt 0:03:38]} 33. Rxf6 {[%emt 0:00:11]} Rbc8 {[%emt 0:04:33]} 34. Rbf1 {[%emt 0:05:06]} Nd2 {[%emt 0:02:56]} 35. Rf7 {[%emt 0:01:34]} Qb8 {[%emt 0:02:16]} 36. R1f5 {[%emt 0:02:06]} Ne4 {[%emt 0:00:55]} 37. Qa3 {[%emt 0:01:01]} Rf8 {[%emt 0:01:29]} 38. Qe7 {[%emt 0:01:13]} Nf6 {[%emt 0:05:51]} 39. Rg5+ {[%emt 0:02:06]} 1-0

[Event "HUN-ch U8-U18 2019"]
[Site "Balatonlelle"]
[Date "2019.06.23"]
[Round "3.15"]
[White "Miszler, Levente"]
[Black "Udvardi, Zalan"]
[Result "1/2-1/2"]
[ECO "D59"]
[WhiteElo "2041"]
[BlackElo "2211"]
[Annotator "NA"]
[PlyCount "20"]
[EventDate "2019.06.21"]
[EventType "swiss"]
[EventCountry "HUN"]
[SourceTitle "playchess.com"]
[Source "ChessBase"]
[SourceQuality "1"]
[TimeControl "40/5400+30:1800+30"]

1. d4 {[%emt 0:00:04]} d5 {[%emt 0:00:08]} 2. c4 {[%emt 0:00:12]} e6 {[%emt 0:00:07]} 3. Nc3 {[%emt 0:00:10]} Nf6 {[%emt 0:00:08]} 4. Bg5 {[%emt 0:00:16]} Be7 {[%emt 0:00:28]} 5. e3 {[%emt 0:00:12]} h6 {[%emt 0:00:03]} 6. Bh4 {[%emt 0:00:13]} O-O {[%emt 0:00:11]} 7. Nf3 {[%emt 0:00:10]} b6 {[%emt 0:00:19]} 8. cxd5 {[%emt 0:00:15]} Nxd5 {[%emt 0:00:09]} 9. Bxe7 {[%emt 0:00:18]} Qxe7 {[%emt 0:00:10]} 10. Nxd5 {[%emt 0:00:17]} exd5 {[%emt 0:00:31]} 1/2-1/2

[Event "HUN-ch U8-U18 2019"]
[Site "Balatonlelle"]
[Date "2019.06.23"]
[Round "3.15"]
[White "Magyar, Erik Ferenc"]
[Black "Barsi, Botond"]
[Result "0-1"]
[ECO "B29"]
[WhiteElo "1561"]
[BlackElo "1850"]
[Annotator "NA"]
[PlyCount "162"]
[EventDate "2019.06.21"]
[EventType "swiss"]
[EventCountry "HUN"]
[SourceTitle "playchess.com"]
[Source "ChessBase"]
[SourceQuality "1"]
[TimeControl "40/5400+30:1800+30"]

1. e4 {[%emt 0:00:03]} c5 {[%emt 0:00:19]} 2. Nf3 {[%emt 0:00:07]} Nf6 {[%emt 0:00:21]} 3. Nc3 {[%emt 0:00:51]} Nc6 {[%emt 0:00:14]} 4. d4 {[%emt 0:00:07]} d5 {[%emt 0:00:16]} 5. exd5 {[%emt 0:04:12]} Nxd5 {[%emt 0:01:47]} 6. Nxd5 {[%emt 0:07:48]} Qxd5 {[%emt 0:01:29]} 7. Be3 {[%emt 0:04:57]} cxd4 {[%emt 0:01:13]} 8. Nxd4 {[%emt 0:01:41]} e5 {[%emt 0:03:00]} 9. Nxc6 {[%emt 0:00:19]} Qxc6 {[%emt 0:02:37]} 10. f3 {[%emt 0:01:30]} Bf5 {[%emt 0:05:29]} 11. c3 {[%emt 0:03:09]} Bc5 {[%emt 0:05:26]} 12. Bxc5 {[%emt 0:03:12]} Qxc5 {[%emt 0:00:15]} 13. Qa4+ {[%emt 0:00:35]} Bd7 {[%emt 0:02:33]} 14. Qc4 {[%emt 0:01:39]} Qb6 {[%emt 0:05:02]} 15. Qe2 {[%emt 0:11:49]} O-O {[%emt 0:00:55]} 16. Qf2 {[%emt 0:00:12]} Qg6 {[%emt 0:06:10]} 17. Bc4 {[%emt 0:01:19]} Rac8 {[%emt 0:01:23]} 18. Bb3 {[%emt 0:00:58]} Bb5 {[%emt 0:03:59]} 19. O-O-O {[%emt 0:05:37]} b6 {[%emt 0:06:42]} 20. g3 {[%emt 0:02:31]} Bc6 {[%emt 0:01:48]} 21. Bd5 {[%emt 0:00:28]} b5 {[%emt 0:12:11]} 22. Bxc6 {[%emt 0:01:33]} Rxc6 {[%emt 0:00:59]} 23. Rhe1 {[%emt 0:12:29]} b4 {[%emt 0:02:16]} 24. Re3 {[%emt 0:02:50]} Rfc8 {[%emt 0:03:48]} 25. Rdd3 {[%emt 0:03:45]} Qf6 {[%emt 0:02:35]} 26. Qd2 {[%emt 0:03:30]} g5 {[%emt 0:04:38]} 27. Re4 {[%emt 0:03:42]} bxc3 {[%emt 0:08:26]} 28. Rxc3 {[%emt 0:00:25]} Qxf3 {[%emt 0:02:13]} 29. Qxg5+ {[%emt 0:01:26]} Kf8 {[%emt 0:00:46]} 30. Ree3 {[%emt 0:06:21]} Rxc3+ {[%emt 0:07:14]} 31. Rxc3 {[%emt 0:00:26]} Rxc3+ {[%emt 0:01:32]} 32. bxc3 {[%emt 0:00:09]} Qxc3+ {[%emt 0:00:02]} 33. Kb1 {[%emt 0:00:52]} Qd3+ {[%emt 0:03:58]} 34. Kc1 {[%emt 0:02:05]} Qd6 {[%emt 0:02:03]} 35. Qf5 {[%emt 0:02:33]} Qh6+ {[%emt 0:01:36]} 36. Kd1 {[%emt 0:01:18]} Qd6+ {[%emt 0:00:28]} 37. Kc1 {[%emt 0:01:03]} Qc6+ {[%emt 0:00:03]} 38. Kb2 {[%emt 0:01:25]} Qb6+ {[%emt 0:00:26]} 39. Kc1 {[%emt 0:00:49]} Qg1+ {[%emt 0:00:14]} 40. Kd2 {[%emt 0:00:00]} Qxh2+ {[%emt 0:00:00]} 41. Ke1 {[%emt 0:00:44]} Qxg3+ {[%emt 0:00:26]} 42. Kd1 {[%emt 0:00:15]} Qg1+ {[%emt 0:01:26]} 43. Ke2 {[%emt 0:01:19]} Qh2+ {[%emt 0:00:27]} 44. Ke1 {[%emt 0:00:26]} Qxa2 {[%emt 0:01:08]} 45. Qxh7 {[%emt 0:01:19]} e4 {[%emt 0:00:46]} 46. Qh8+ {[%emt 0:00:19]} Ke7 {[%emt 0:00:08]} 47. Qe5+ {[%emt 0:00:08]} Kd7 {[%emt 0:00:53]} 48. Qd4+ {[%emt 0:00:41]} Ke7 {[%emt 0:00:40]} 49. Qe5+ {[%emt 0:00:30]} Qe6 {[%emt 0:00:13]} 50. Qc7+ {[%emt 0:00:07]} Kf6 {[%emt 0:00:43]} 51. Qxa7 {[%emt 0:00:37]} e3 {[%emt 0:02:53]} 52. Qd4+ {[%emt 0:00:29]} Kf5 {[%emt 0:01:22]} 53. Qc5+ {[%emt 0:02:05]} Kf4 {[%emt 0:00:16]} 54. Qb4+ {[%emt 0:01:38]} Qe4 {[%emt 0:03:00]} 55. Qd6+ {[%emt 0:00:19]} Kg4 {[%emt 0:00:34]} 56. Qd7+ {[%emt 0:02:31]} f5 {[%emt 0:00:15]} 57. Qg7+ {[%emt 0:00:05]} Kf3 {[%emt 0:00:33]} 58. Qb2 {[%emt 0:00:25]} f4 {[%emt 0:05:22]} 59. Qb5 {[%emt 0:01:17]} Qg6 {[%emt 0:03:26]} 60. Qf1+ {[%emt 0:00:50]} Ke4 {[%emt 0:01:08]} 61. Qc4+ {[%emt 0:00:10]} Kf5 {[%emt 0:01:40]} 62. Qd5+ {[%emt 0:00:42]} Kf6 {[%emt 0:00:40]} 63. Qc6+ {[%emt 0:00:47]} Kg7 {[%emt 0:01:34]} 64. Qd7+ {[%emt 0:01:11]} Kh6 {[%emt 0:02:35]} 65. Qh3+ {[%emt 0:00:23]} Qh5 {[%emt 0:00:31]} 66. Qe6+ {[%emt 0:00:54]} Kg5 {[%emt 0:00:06]} 67. Qd5+ {[%emt 0:00:10]} Kg4 {[%emt 0:00:52]} 68. Qg2+ {[%emt 0:00:13]} Kh4 {[%emt 0:00:25]} 69. Qh2+ {[%emt 0:00:12]} Kg5 {[%emt 0:00:10]} 70. Qg2+ {[%emt 0:00:24]} Qg4 {[%emt 0:00:06]} 71. Qd5+ {[%emt 0:00:27]} Kh4 {[%emt 0:00:15]} 72. Qh1+ {[%emt 0:00:32]} Qh3 {[%emt 0:00:37]} 73. Qe4 {[%emt 0:00:41]} Qg3+ {[%emt 0:00:26]} 74. Ke2 {[%emt 0:00:22]} Qf2+ {[%emt 0:01:32]} 75. Kd3 {[%emt 0:00:05]} Qd2+ {[%emt 0:01:43]} 76. Kc4 {[%emt 0:00:17]} Kg3 {[%emt 0:00:16]} 77. Qg6+ {[%emt 0:00:54]} Kf2 {[%emt 0:00:10]} 78. Qh6 {[%emt 0:00:35]} f3 {[%emt 0:00:41]} 79. Qh2+ {[%emt 0:00:37]} Ke1 {[%emt 0:00:20]} 80. Qh1+ {[%emt 0:00:21]} Ke2 {[%emt 0:00:09]} 81. Qh2+ {[%emt 0:00:10]} f2 {[%emt 0:00:06]} 0-1

[Event "HUN-ch U8-U18 2019"]
[Site "Balatonlelle"]
[Date "2019.06.23"]
[Round "3.16"]
[White "Bohus, Adam"]
[Black "Horvath, Balazs"]
[Result "1-0"]
[ECO "C77"]
[WhiteElo "2196"]
[BlackElo "2139"]
[Annotator "ChessBase"]
[PlyCount "117"]
[EventDate "2019.06.21"]
[EventType "swiss"]
[EventCountry "HUN"]
[SourceTitle "playchess.com"]
[Source "ChessBase"]
[SourceQuality "1"]
[TimeControl "40/5400+30:1800+30"]

1. e4 {[%emt 0:00:02]} e5 {[%emt 0:00:08]} 2. Nf3 {[%emt 0:00:09]} Nc6 {[%emt 0:00:05]} 3. Bb5 {[%emt 0:00:10]} a6 {[%emt 0:00:08]} 4. Ba4 {[%emt 0:00:09]} Nf6 {[%emt 0:00:12]} 5. Nc3 {[%emt 0:00:11]} b5 {[%emt 0:01:26]} 6. Bb3 {[%emt 0:00:13]} Bc5 {[%emt 0:01:24]} 7. a4 {[%emt 0:00:34]} b4 {[%emt 0:06:27]} 8. Nd5 {[%emt 0:00:10]} O-O {[%emt 0:02:00]} 9. d3 {[%emt 0:00:14]} h6 {[%emt 0:01:09]} 10. O-O {[%emt 0:00:30]} Re8 {[%emt 0:03:50]} 11. Be3 {[%emt 0:08:17]} d6 {[%emt 0:06:48]} 12. Nxf6+ {[%emt 0:08:51]} Qxf6 {[%emt 0:00:57]} 13. Bd5 {[%emt 0:01:21]} Bb7 {[%emt 0:00:41]} 14. Nd2 {[%emt 0:14:10]} Nd8 {[%emt 0:03:37]} 15. Bb3 {[%emt 0:11:14]} Bc8 {[%emt 0:12:54]} 16. Qe2 {[%emt 0:07:11]} Be6 {[%emt 0:18:37]} 17. Bxc5 {[%emt 0:03:01]} dxc5 {[%emt 0:00:15]} 18. Qe3 {[%emt 0:00:23]} Nb7 {[%emt 0:00:27]} 19. Bxe6 {[%emt 0:17:21]} Rxe6 {[%emt 0:02:15]} 20. Nb3 {[%emt 0:10:12]} Rc6 {[%emt 0:04:22]} 21. f4 {[%emt 0:05:26]} exf4 {[%emt 0:08:16]} 22. Qxf4 {[%emt 0:00:02]} Qg6 {[%emt 0:00:31]} 23. Nd2 {[%emt 0:05:27]} Nd8 {[%emt 0:06:25]} 24. Nf3 {[%emt 0:01:43]} Ne6 {[%emt 0:01:41]} 25. Qe3 {[%emt 0:01:21]} Qh5 {[%emt 0:02:34]} 26. Rf2 {[%emt 0:02:13]} Re8 {[%emt 0:01:30]} 27. Raf1 {[%emt 0:00:01]} Nd8 {[%emt 0:01:46]} 28. Qf4 {[%emt 0:01:26]} g5 {[%emt 0:04:50]} 29. Qg3 {[%emt 0:01:03]} f6 {[%emt 0:01:43]} 30. Nd2 {[%emt 0:01:04]} Kg7 {[%emt 0:00:59]} 31. Nc4 {[%emt 0:00:35]} Re7 {[%emt 0:01:32]} 32. e5 {[%emt 0:00:25]} fxe5 {[%emt 0:00:54]} 33. Nxe5 {[%emt 0:00:02]} Rce6 {[%emt 0:00:18]} 34. Ng4 {[%emt 0:01:16]} Qg6 {[%emt 0:04:34]} 35. Qf3 {[%emt 0:00:01]} Rf7 {[%emt 0:00:49]} 36. Qd5 {[%emt 0:00:19]} Rxf2 {[%emt 0:00:24]} 37. Nxf2 {[%emt 0:00:00]} Nf7 {[%emt 0:01:20]} 38. Ne4 {[%emt 0:00:55]} c6 {[%emt 0:00:32]} 39. Qxc5 {[%emt 0:00:59]} h5 {[%emt 0:00:35]} 40. Qd4+ {[%emt 0:00:00]} Kh6 {[%emt 0:00:00]} 41. Qxb4 {[%emt 0:08:07]} Nd6 {[%emt 0:01:41]} 42. Nxd6 {[%emt 0:10:44]} Rxd6 {[%emt 0:00:22]} 43. Qb8 {[%emt 0:04:15]} Qe6 {[%emt 0:01:46]} 44. h3 {[%emt 0:03:04]} h4 {[%emt 0:00:53]} 45. Qa7 {[%emt 0:02:31]} Qe5 {[%emt 0:02:48]} 46. Qf7 {[%emt 0:01:16]} Re6 {[%emt 0:01:03]} 47. Qf8+ {[%emt 0:00:10]} Kg6 {[%emt 0:00:17]} 48. c3 {[%emt 0:01:08]} c5 {[%emt 0:00:51]} 49. Kh1 {[%emt 0:00:22]} Qe3 {[%emt 0:03:40]} 50. Qf5+ {[%emt 0:01:37]} Kg7 {[%emt 0:01:01]} 51. Qf8+ {[%emt 0:00:33]} Kg6 {[%emt 0:00:11]} 52. d4 {[%emt 0:00:05]} cxd4 {[%emt 0:02:06]} 53. cxd4 {[%emt 0:00:01]} Kh5 {[%emt 0:02:10]} 54. d5 {[%emt 0:01:13]} Rg6 {[%emt 0:00:48]} 55. Qh8+ {[%emt 0:01:37]} Rh6 {[%emt 0:00:09]} 56. Qg8 {[%emt 0:00:10]} Rg6 {[%emt 0:00:31]} 57. Qh7+ {[%emt 0:00:10]} Rh6 {[%emt 0:00:08]} 58. Qf7+ {[%emt 0:00:08]} Rg6 {[%emt 0:00:07]} 59. d6 {[%emt 0:00:54]} 1-0